bitfinex-derivatives/quotes_ETHF0:USTF0_20250503
["timestamp","ask_amount","ask_price","bid_price","bid_amount"]
[1746292205708,1.10092,1816.2,1816.0,5.973]
[1746292205904,3.718,1816.5,1816.0,5.973]
[1746292205905,1.1009,1816.3,1816.0,5.973]
[1746292206110,4.81886,1816.3,1816.2,1.10088]
[1746292206410,4.81886,1816.3,1816.1,1.10093]
[1746292207214,1.10092,1816.2,1816.0,7.074]
[1746292207709,1.10097,1816.2,1816.0,7.07401]
[1746292207910,1.10097,1816.2,1816.0,1.10101]
[1746292208108,1.10104,1816.0,1815.9,1.10106]
[1746292208304,1.1011,1815.9,1815.8,3.2078]
[1746292208515,1.10116,1815.8,1815.7,7.07422]
[1746292208905,1.10116,1815.8,1815.7,5.973]
[1746292209408,1.10134,1815.6,1815.4,47.88239]
[1746292209610,1.10136,1815.5,1815.3,4.30922]
[1746292210209,4.81936,1815.5,1815.3,1.10142]
[1746292210613,3.718,1815.5,1815.4,1.10141]
[1746292211213,1.1009,1816.3,1815.4,5.0]
[1746292211409,3.2078,1816.5,1816.1,1.10094]
[1746292211610,3.2078,1816.5,1815.9,5.975]
[1746292211809,1.10094,1816.2,1815.9,5.975]
[1746292212000,1.10094,1816.2,1816.0,1.10104]
[1746292212205,1.10098,1816.1,1815.9,7.07606]
[1746292212512,4.81897,1816.2,1816.0,1.10098]
[1746292212712,4.81898,1816.2,1816.0,1.10098]
[1746292212906,1.10098,1816.1,1816.0,1.10098]
[1746292213107,3.718,1816.1,1816.0,1.10098]
[1746292214917,4.81898,1816.1,1816.0,1.10098]
[1746292215117,3.718,1816.1,1816.0,1.10098]
[1746292215918,4.81901,1816.1,1816.0,1.10104]
[1746292216121,4.81901,1816.1,1815.9,5.975]
[1746292216122,1.10104,1816.0,1815.9,7.0761]
[1746292216417,1.6565,1816.0,1815.6,5.741]
[1746292216613,1.10119,1815.8,1815.7,1.10122]
[1746292216809,1.6565,1816.0,1815.6,5.741]
[1746292216810,1.6565,1816.0,1815.6,8.49418]
[1746292217018,1.6565,1816.0,1815.9,1.1011]
[1746292217209,5.3745,1816.0,1815.9,1.1011]
[1746292218420,3.718,1816.0,1815.9,1.1011]
[1746292219211,4.81907,1816.0,1815.9,1.1011]
[1746292219408,5.4527,1816.0,1815.8,1.10112]
[1746292219610,6.55379,1816.0,1815.8,1.10112]
[1746292219811,6.55378,1816.0,1815.8,1.10112]
[1746292220021,1.1011,1815.9,1815.7,5.742]
[1746292220221,1.6039,1815.8,1815.7,6.84322]
[1746292220423,1.6039,1815.8,1815.4,2.75345]
[1746292220614,3.718,1816.0,1815.6,2.75319]
[1746292220920,3.718,1816.0,1815.9,1.1011]
[1746292221617,3.718,1816.0,1815.5,8.9498]
[1746292221822,4.30902,1815.8,1815.6,1.10126]
[1746292222025,1.10122,1815.8,1815.6,1.10126]
[1746292222212,2.27385,1815.8,1815.7,4.30902]
[1746292222414,0.98116,1815.8,1815.7,5.37332]
[1746292222615,1e-05,1815.8,1815.7,10.37332]
[1746292223216,0.11011396,1816.3,1816.2,1.10092]
[1746292224131,3.82811396,1816.3,1816.2,1.10092]
[1746292224519,3.82811396,1816.3,1816.2,4.30872]
[1746292224715,2.61128396,1816.3,1816.2,9.30872]
[1746292224918,7.92e-06,1816.3,1816.2,9.30872]
[1746292225220,7.92e-06,1816.3,1816.2,13.02672]
[1746292225617,7.92e-06,1816.3,1816.2,9.09102]
[1746292225821,7.92e-06,1816.3,1816.2,14.09102]
[1746292226227,7.91232937,1817.0,1816.7,1.10062]
[1746292226521,1.10025,1817.3,1816.7,10.04942]
[1746292226825,1.10025,1817.3,1817.1,1.10037]
[1746292227023,10.43285999,1817.4,1817.2,1.10031]
[1746292227222,3.718,1817.3,1817.2,1.10027]
[1746292227420,3.718,1817.3,1817.2,6.84127]
[1746292227819,3.718,1817.3,1817.2,7.90367]
[1746292228015,3.718,1817.3,1817.2,6.84127]
[1746292228226,5.30641999,1817.4,1817.2,5.741]
[1746292228418,5.30641999,1817.4,1817.3,1.10025]
[1746292228619,1.10025,1817.3,1817.2,5.741]
[1746292230529,1.10025,1817.3,1817.2,6.84131]
[1746292230919,1.10025,1817.3,1817.2,5.741]
[1746292231315,4.0137,1817.5,1817.2,6.84129]
[1746292231621,1.10044,1817.0,1816.8,3.2078]
[1746292231820,1.10068,1816.6,1816.5,1.1007]
[1746292232020,1.10065,1816.7,1816.6,1.10068]
[1746292232322,1.6905,1816.9,1816.2,5.74]
[1746292232518,1.10076,1816.5,1816.3,1.10086]
[1746292232915,1.10086,1816.3,1816.2,5.74]
[1746292233122,4.30863,1816.4,1816.2,6.84092]
[1746292233323,1.10086,1816.3,1816.2,6.84092]
[1746292233524,0.11011396,1816.3,1816.2,6.84092]
[1746292233722,0.11011396,1816.3,1816.2,5.74]
[1746292234029,1.21097396,1816.3,1816.2,5.74]
[1746292234430,0.11011396,1816.3,1816.2,6.84092]
[1746292235032,0.11011396,1816.3,1816.2,7.90142]
[1746292235225,0.11011396,1816.3,1816.2,16.61942]
[1746292235624,3.96e-06,1816.3,1816.2,16.61942]
[1746292235819,1.7444,1816.8,1816.7,1.10062]
[1746292236124,1.7444,1816.8,1816.7,6.61362]
[1746292236326,1.7444,1816.8,1816.7,10.33162]
[1746292236622,2.84496,1816.8,1816.7,9.231]
[1746292237036,2.84496,1816.8,1816.7,3.718]
[1746292237328,1.1008,1816.4,1816.3,5.513]
[1746292237823,1.2109079,1816.4,1816.3,5.513]
[1746292238025,1.1009,1816.3,1816.1,1.10094]
[1746292238228,2.80326,1816.2,1816.0,46.788]
[1746292238426,2.80326,1816.2,1816.0,1.10101]
[1746292238622,1.7023,1816.2,1816.1,1.10098]
[1746292239033,2.80322,1816.2,1816.1,1.10098]
[1746292239535,1.7023,1816.2,1816.1,1.10098]
[1746292240824,1.7023,1816.2,1816.1,4.30878]
[1746292241436,0.1101079,1816.4,1816.3,1.10086]
[1746292241635,1.7506079,1816.4,1816.3,1.10086]
[1746292241840,0.1101079,1816.4,1816.3,4.30866]
[1746292242335,0.1101079,1816.4,1816.3,8.02666]
[1746292242837,7.9e-06,1816.4,1816.3,13.02666]
[1746292243031,7.9e-06,1816.4,1816.3,8.02666]
[1746292243336,1.10072,1816.6,1816.3,6.9258]
[1746292243534,1.6405,1816.5,1816.4,1.1008]
[1746292244338,1.1008,1816.4,1816.3,1.10081]
[1746292244526,1.1008,1816.4,1816.2,6.61487]
[1746292244727,2.75276,1816.3,1816.2,3.2078]
[1746292244927,1.6519,1816.3,1816.2,4.30872]
[1746292245931,1.6519,1816.3,1816.1,1.10095]
[1746292246131,1.10092,1816.2,1816.1,1.10095]
[1746292246638,1.6519,1816.3,1816.2,1.10092]
[1746292246827,1.6519,1816.3,1816.1,1.10095]
[1746292247032,2.7528,1816.3,1816.1,1.10095]
[1746292247227,2.7528,1816.3,1816.0,12.4398]
[1746292247429,3.2078,1817.1,1816.4,5.509]
[1746292247741,3.2078,1816.9,1816.6,1.10064]
[1746292247935,13.14044104,1817.0,1816.5,5.514]
[1746292248327,1.10057,1816.8,1816.5,5.514]
[1746292248535,1.6795,1816.7,1816.6,1.10063]
[1746292249436,3.58824104,1817.0,1816.9,1.1005]
[1746292249833,3.58824104,1817.0,1816.9,6.6145]
[1746292250634,5.25764104,1817.0,1816.9,6.6145]
[1746292251142,1.6694,1817.0,1816.9,6.6145]
[1746292252143,1.6694,1817.0,1816.9,10.3325]
[1746292252837,9.54595104,1817.8,1816.9,11.393]
[1746292253043,1.6694,1817.4,1817.3,1.10025]
[1746292254237,1.6694,1817.4,1817.3,4.81825]
[1746292254544,2.76959,1817.4,1817.3,3.718]
[1746292255242,2.76962,1817.4,1817.3,1.10025]
[1746292255442,1.6694,1817.4,1817.3,1.10025]
[1746292256646,1.10025,1817.3,1817.2,1.10028]
[1746292256945,1.10025,1817.3,1817.2,1.10031]
[1746292257248,2.76964,1817.4,1817.3,1.10025]
[1746292257548,2.75019,1817.6,1817.2,1.10027]
[1746292257847,1.10025,1817.3,1817.2,1.10027]
[1746292258449,5.172,1817.7,1817.0,3.2078]
[1746292258645,1.10046,1817.0,1816.9,1.10047]
[1746292258948,4.30822,1817.1,1816.9,1.10047]
[1746292259145,1.10042,1817.1,1816.9,1.10047]
[1746292259444,5.95845,1817.3,1817.0,1.10043]
[1746292259747,1.10042,1817.1,1817.0,1.10044]
[1746292260648,1.10041,1817.1,1817.0,1.10043]
[1746292260843,2.75082,1817.2,1816.7,9.3791]
[1746292261045,1.10056,1816.8,1816.7,6.37557]
[1746292261245,1.10056,1816.8,1816.7,5.275]
[1746292261441,1.10062,1816.7,1816.6,1.10067]
[1746292261750,1.10074,1816.5,1816.4,5.275]
[1746292261948,1.10072,1816.6,1816.4,5.275]
[1746292262150,1.10074,1816.5,1816.4,6.37577]
[1746292262351,3.2078,1816.7,1816.5,1.10074]
[1746292262547,1.10071,1816.6,1816.4,6.37575]
[1746292262848,1.10074,1816.5,1816.4,6.37575]
[1746292263250,3.2078,1816.8,1816.5,1.10073]
[1746292263550,1.10068,1816.6,1816.5,1.10073]
[1746292263848,1.10068,1816.6,1816.4,6.37576]
[1746292264048,1.10072,1816.6,1816.4,6.37576]
[1746292264252,3.2078,1816.8,1816.4,6.37576]
[1746292264447,5.95857,1817.3,1816.6,3.2078]
[1746292264755,1.10056,1816.8,1816.7,1.10058]
[1746292264945,5.95874,1817.1,1816.4,8.4828]
[1746292265145,1.10057,1816.8,1816.7,1.1006]
[1746292265452,3.2078,1816.9,1816.4,8.4828]
[1746292265648,1.10074,1816.5,1816.4,3.2078]
[1746292265847,1.10074,1816.5,1816.3,5.276]
[1746292266048,1.10072,1816.6,1816.5,1.10074]
[1746292266244,1.10072,1816.6,1816.4,1.1008]
[1746292266549,1.10072,1816.6,1816.3,5.276]
[1746292266751,3.71601,1816.8,1816.3,5.276]
[1746292266941,1.10079,1816.5,1816.3,5.276]
[1746292267142,1.10079,1816.5,1816.4,1.1008]
[1746292267544,1.21089184,1816.5,1816.4,1.1008]
[1746292268857,0.11010184,1816.5,1816.4,1.1008]
[1746292270259,0.11010184,1816.5,1816.4,4.8188]
[1746292270559,0.11010184,1816.5,1816.4,13.0266]
[1746292270853,3.58824104,1817.0,1816.9,1.1005]
[1746292271048,3.58824104,1817.0,1816.7,5.276]
[1746292271253,4.68870104,1817.0,1816.9,1.1005]
[1746292272048,3.58824104,1817.0,1816.9,1.1005]
[1746292272457,4.68868104,1817.0,1816.9,1.1005]
[1746292272656,1.10056,1816.8,1816.7,5.276]
[1746292272849,1.10062,1816.7,1816.6,4.30846]
[1746292273044,1.10062,1816.7,1816.6,1.10066]
[1746292273250,1.10074,1816.5,1816.4,5.277]
[1746292273456,1.10074,1816.5,1816.4,6.3778]
[1746292274758,1.10072,1816.6,1816.4,6.3778]
[1746292275360,1.5996,1816.5,1816.4,6.3778]
[1746292275551,2.70034,1816.5,1816.4,6.3778]
[1746292275751,2.70034,1816.5,1816.4,5.277]
[1746292276054,1.5996,1816.5,1816.2,1.10088]
[1746292276249,1.10084,1816.4,1816.3,1.10086]
[1746292276449,1.10084,1816.4,1816.2,1.10088]
[1746292276650,1.5996,1816.3,1816.2,1.10088]
[1746292276850,2.70046,1816.3,1816.2,1.10088]
[1746292277352,2.70046,1816.3,1816.1,9.58573]
[1746292277655,1.5996,1816.3,1816.2,1.10092]
[1746292279660,1.5996,1816.3,1816.1,5.277]
[1746292279857,1.10092,1816.2,1816.1,5.277]
[1746292280057,1.10092,1816.2,1816.0,1.10102]
[1746292280257,1.5962,1816.1,1816.0,1.10102]
[1746292280761,1.5962,1816.1,1815.8,8.2648]
[1746292280762,3.2078,1816.3,1815.8,11.01765]
[1746292280963,1.5962,1816.2,1816.1,1.10096]
[1746292281350,2.69717,1816.2,1816.0,1.10099]
[1746292281560,2.69717,1816.2,1816.1,1.10098]
[1746292281757,2.69717,1816.2,1815.8,12.07995]
[1746292282055,1.10102,1816.1,1816.0,1.10104]
[1746292282257,2.84752,1816.1,1816.0,1.10104]
[1746292282462,1.7465,1816.1,1816.0,1.10104]
[1746292283461,3.2078,1816.3,1816.2,1.10092]
[1746292283856,1.7465,1816.4,1816.3,1.10086]
[1746292284062,3.58824104,1816.7,1816.6,1.10068]
[1746292284559,3.58824104,1816.7,1816.6,11.15768]
[1746292285077,5.22564104,1817.0,1816.9,1.1005]
[1746292286172,3.58824104,1817.0,1816.9,1.1005]
[1746292287166,3.58824104,1817.0,1816.9,4.3083]
[1746292287969,1.6235,1817.3,1817.2,1.10031]
[1746292288159,1.10021,1817.4,1817.2,1.10031]
[1746292288362,6.79604104,1817.6,1817.1,5.057]
[1746292288572,1.10028,1817.3,1817.1,6.15735]
[1746292290076,1.10028,1817.3,1817.2,1.10031]
[1746292290375,1.10028,1817.3,1817.1,6.15733]
[1746292290670,1.10028,1817.3,1817.2,1.10031]
[1746292290971,6.79604104,1817.6,1817.2,1.10031]
[1746292291173,0.34536801,1817.5,1817.2,1.10031]
[1746292291372,1.10027,1817.3,1817.1,6.15734]
[1746292291681,1.10027,1817.3,1817.2,1.10031]
[1746292291885,1.10024,1817.4,1817.2,1.10031]
[1746292292082,1.10024,1817.4,1817.1,5.057]
[1746292292083,1.10024,1817.4,1817.3,1.10025]
[1746292292283,1.10024,1817.4,1817.2,1.10026]
[1746292292583,1.10018,1817.5,1817.3,1.10023]
[1746292292881,1.10019,1817.4,1817.3,1.10023]
[1746292293584,1.10019,1817.4,1817.2,1.10026]
[1746292293786,1.10024,1817.4,1817.2,1.10026]
[1746292293986,1.10025,1817.3,1817.2,1.10026]
[1746292294686,4.81824,1817.4,1817.1,5.057]
[1746292294980,1.10025,1817.3,1817.1,5.057]
[1746292295186,1.10022,1817.4,1817.3,1.10025]
[1746292295384,3.2078,1817.6,1817.4,1.10019]
[1746292295588,1.10022,1817.4,1817.3,1.10023]
[1746292296281,1.10022,1817.4,1817.2,1.10026]
[1746292296282,1.10025,1817.3,1817.2,1.10026]
[1746292296583,1.10028,1817.3,1817.2,1.1003]
[1746292297081,4.81828,1817.3,1817.2,1.1003]
[1746292297483,1.10031,1817.2,1817.1,6.15732]
[1746292298182,4.81831,1817.2,1817.1,6.15732]
[1746292298378,4.81831,1817.2,1817.1,5.057]
[1746292298687,1.10043,1817.1,1816.9,6.15645]
[1746292298882,1.10044,1817.0,1816.9,6.15645]
[1746292299484,1.10044,1817.0,1816.9,5.056]
[1746292299679,1.10053,1816.9,1816.7,4.30838]
[1746292299882,1.10056,1816.8,1816.7,5.056]
[1746292300284,1.10067,1816.7,1816.5,1.1007]
[1746292300785,1.10072,1816.6,1816.4,56.15457]
[1746292300984,3.2078,1816.7,1816.2,1.0607]
[1746292301187,1.10074,1816.5,1816.4,4.837]
[1746292302086,4.81874,1816.5,1816.4,4.837]
[1746292303083,3.718,1816.5,1816.1,5.93794]
[1746292303293,1.10092,1816.2,1816.1,5.93794]
[1746292303488,1.2109279,1816.4,1816.2,1.10087]
[1746292303687,1.2109279,1816.4,1816.1,4.837]
[1746292303889,1.2109279,1816.4,1816.2,1.10088]
[1746292304091,1.2109279,1816.4,1816.2,1.10089]
[1746292304292,1.2109279,1816.4,1816.1,4.837]
[1746292304488,0.1101079,1816.4,1816.3,1.10086]
[1746292304893,7.9e-06,1816.4,1816.3,6.10086]
[1746292305093,7.9e-06,1816.4,1816.3,9.81886]
[1746292305793,2.81596,1816.8,1816.7,1.10062]
[1746292306094,2.81596,1816.8,1816.7,5.93762]
[1746292306392,2.81596,1816.8,1816.7,4.837]
[1746292307092,6.53396,1816.8,1816.7,4.837]
[1746292307295,6.53396,1816.8,1816.7,5.93762]
[1746292307591,6.53396,1816.8,1816.7,4.837]
[1746292307786,6.53396,1816.8,1816.7,5.93762]
[1746292307988,5.4334,1816.8,1816.7,5.93762]
[1746292308188,1.7154,1816.8,1816.7,5.93762]
[1746292308480,1.7154,1816.8,1816.7,4.837]
[1746292308690,2.81596,1816.8,1816.7,4.837]
[1746292309082,6.53396,1816.8,1816.7,4.837]
[1746292309283,6.53396,1816.8,1816.4,7.58897]
[1746292309488,5.4334,1816.8,1816.7,1.10062]
[1746292309788,1.10062,1816.7,1816.6,1.10065]
[1746292309989,1.6564,1816.7,1816.6,1.10065]
[1746292310589,4.8642,1816.7,1816.3,4.837]
[1746292310793,1.10071,1816.6,1816.4,1.10079]
[1746292310992,1.6564,1816.5,1816.4,1.10079]
[1746292311991,1.6564,1816.5,1816.3,4.837]
[1746292311992,5.96498,1816.5,1816.3,5.93781]
[1746292312290,5.3744,1816.5,1816.4,1.1008]
[1746292313094,1.6564,1816.5,1816.4,5.3712]
[1746292313487,6.79604104,1817.0,1816.5,2.75181]
[1746292313690,1.5926,1816.8,1816.7,1.10062]
[1746292314993,1.5926,1816.8,1816.7,7.00122]
[1746292315696,3.58824104,1817.0,1816.9,1.1005]
[1746292315903,5.20414104,1817.0,1816.9,1.1005]
[1746292316405,1.6159,1817.0,1816.9,2.1631]
[1746292316699,4.68846104,1817.4,1816.9,2.1631]
[1746292316898,1.6159,1817.3,1817.2,1.10031]
[1746292321902,1.6159,1817.3,1817.2,2.16151]
[1746292322400,1.6159,1817.3,1817.2,5.36931]
[1746292322999,1.6159,1817.3,1817.2,2.16151]
[1746292323202,1.6159,1817.3,1817.2,1.10031]
[1746292323703,1.10031,1817.2,1817.1,4.837]
[1746292323907,5.924,1817.3,1817.1,5.93733]
[1746292324096,9.642,1817.3,1817.1,1.10033]
[1746292324297,16.29238,1817.3,1816.7,3.2078]
[1746292324495,1.10044,1817.0,1816.9,1.10048]
[1746292324708,1.1005,1816.9,1816.8,1.10056]
[1746292325603,3.2078,1816.9,1816.6,46.787]
[1746292325809,1.10062,1816.7,1816.5,3.2078]
[1746292325999,1.6842,1816.6,1816.5,1.10074]
[1746292326203,1.10074,1816.5,1816.4,1.10078]
[1746292327703,1.6842,1816.6,1816.5,1.10074]
[1746292328008,1.10065,1816.7,1816.5,1.10074]
[1746292328199,3.718,1816.6,1816.5,1.10074]
[1746292329211,4.81868,1816.6,1816.4,1.10075]
[1746292329408,4.81868,1816.6,1816.5,1.10074]
[1746292329711,3.718,1816.6,1816.5,1.10074]
[1746292329911,4.81868,1816.6,1816.5,1.10074]
[1746292330115,1.10068,1816.6,1816.5,1.10074]
[1746292330308,4.92874972,1816.7,1816.3,8.0448]
[1746292331209,1.21074972,1816.7,1816.5,1.10071]
[1746292331404,1.21074972,1816.7,1816.3,8.0448]
[1746292331600,1.21074972,1816.7,1816.5,1.10072]
[1746292332208,0.11008972,1816.7,1816.6,1.10068]
[1746292332608,1.21070972,1816.7,1816.5,4.8187]
[1746292332810,1.10068,1816.6,1816.5,3.718]
[1746292333307,4.81868,1816.6,1816.4,1.10075]
[1746292333513,4.81868,1816.6,1816.4,1.10076]
[1746292334014,3.718,1816.6,1816.5,1.10074]
[1746292334216,1.21072972,1816.7,1816.5,1.10074]
[1746292334408,0.11008972,1816.7,1816.6,1.10068]
[1746292336017,0.11008972,1816.7,1816.6,3.39488]
[1746292336811,5.46032,1817.1,1817.0,1.10044]
[1746292336812,4.3599,1817.1,1817.0,1.10044]
[1746292337018,5.46027,1817.1,1817.0,1.10044]
[1746292338012,3.2078,1817.1,1817.0,1.10044]
[1746292339811,3.2078,1817.1,1817.0,2.16294]
[1746292340012,6.79604104,1817.3,1817.2,1.10031]
[1746292340719,6.79604104,1817.3,1817.1,1.10035]
[1746292340923,6.79604104,1817.3,1816.9,4.62]
[1746292341123,0.34530112,1817.2,1816.9,1.10048]
[1746292341426,1.10047,1817.0,1816.9,1.10048]
[1746292341611,1.10042,1817.1,1816.9,1.10048]
[1746292341813,1.10044,1817.0,1816.9,1.10048]
[1746292342024,6.9258,1817.3,1817.0,1.10044]
[1746292342219,1.44566941,1817.2,1816.8,7.37038]
[1746292342523,1.10037,1817.1,1816.8,4.619]
[1746292342722,1.10052,1816.9,1816.8,5.71954]
[1746292342915,4.3082,1817.1,1817.0,1.10044]
[1746292343117,8.0262,1817.1,1816.9,1.10044]
[1746292343422,1.1005,1816.9,1816.7,3.2078]
[1746292343615,1.10056,1816.8,1816.7,8.92738]
[1746292343817,1.10055,1816.9,1816.7,1.10058]
[1746292344220,4.81855,1816.9,1816.7,1.10058]
[1746292344821,4.81855,1816.9,1816.8,1.10056]
[1746292345018,6.47535,1816.9,1816.8,1.10056]
[1746292346322,5.3748,1816.9,1816.8,1.10056]
[1746292346922,3.718,1816.9,1816.8,6.10056]
[1746292347223,5.26224104,1817.2,1817.1,1.10037]
[1746292350323,5.26224104,1817.2,1817.1,2.16267]
[1746292350825,1.674,1817.2,1817.1,2.16267]
[1746292353827,3.58824104,1817.6,1817.5,1.10013]
[1746292354026,5.22264104,1817.6,1817.5,1.10013]
[1746292354532,1.6344,1817.6,1817.5,1.10013]
[1746292354721,6.79604104,1817.7,1817.6,1.10007]
[1746292355123,8.43624104,1817.7,1817.6,1.10007]
[1746292357427,5.22844104,1817.7,1817.6,1.10007]
[1746292358533,3.2078,1817.9,1817.8,1.09995]
[1746292358732,4.8854,1817.9,1817.8,5.52195]
[1746292359932,1.6776,1817.9,1817.8,5.52195]
[1746292362235,3.58824104,1818.2,1818.1,1.09977]
[1746292362628,5.33334104,1818.2,1818.1,4.30757]
[1746292362940,3.58824104,1818.2,1818.1,4.30757]
[1746292363635,9.95466395,1818.5,1818.4,1.09959]
[1746292363636,1.09957,1818.5,1818.4,1.09959]
[1746292363929,1.09957,1818.5,1818.4,4.422]
[1746292364122,4.81753,1818.5,1818.4,4.422]
[1746292364326,8.718,1818.5,1818.4,4.422]
[1746292364531,9.81753,1818.5,1818.4,4.422]
[1746292365033,3.718,1818.5,1818.4,4.422]
[1746292365230,1.09968,1818.3,1818.2,4.421]
[1746292366033,1.09968,1818.3,1818.2,5.52071]
[1746292366234,1.09968,1818.3,1818.2,4.421]
[1746292366835,2.38663,1818.4,1818.3,1.09965]
[1746292367035,2.38663,1818.4,1818.2,4.421]
[1746292367234,1.09965,1818.3,1818.2,5.52067]
[1746292367735,1.09965,1818.3,1818.2,4.421]
[1746292368035,1.09965,1818.3,1818.2,5.52071]
[1746292368429,5.59443,1818.4,1818.3,1.09965]
[1746292368940,4.4948,1818.4,1818.3,1.09965]
[1746292369737,1.09966,1818.3,1818.2,1.09968]
[1746292370035,2.38661,1818.4,1818.3,1.09965]
[1746292370243,6.10461,1818.4,1818.3,1.09965]
[1746292370537,1.09965,1818.3,1818.1,4.421]
[1746292370738,1.09965,1818.3,1818.1,5.52071]
[1746292370937,1.09965,1818.3,1818.2,1.09971]
[1746292371531,5.59443,1818.4,1818.3,1.09965]
[1746292372139,9.31243,1818.4,1818.3,1.09965]
[1746292372540,1.09968,1818.3,1818.2,1.09966]
[1746292372743,1.09971,1818.2,1818.1,5.52073]
[1746292372934,1.09969,1818.3,1818.2,1.09968]
[1746292373539,1.09971,1818.2,1818.1,4.421]
[1746292373842,5.47811,1818.2,1818.1,4.421]
[1746292374047,5.47811,1818.2,1818.1,5.52077]
[1746292374235,9.19611,1818.2,1818.1,4.421]
[1746292374437,9.19611,1818.2,1818.1,5.52077]
[1746292375148,9.19611,1818.2,1818.1,4.421]
[1746292375539,9.19611,1818.2,1818.1,5.52077]
[1746292375843,9.19611,1818.2,1818.1,4.421]
[1746292377949,8.44135944,1818.2,1817.9,1.09987]
[1746292378142,3.2078,1818.0,1817.9,1.09987]
[1746292378345,1.09987,1818.0,1817.9,1.09987]
[1746292378739,1.09991,1817.9,1817.8,1.09992]
[1746292378940,2.75141,1817.9,1817.8,1.09992]
[1746292380153,1.09995,1817.8,1817.7,5.51996]
[1746292380353,2.75145,1817.8,1817.7,5.51996]
[1746292380650,2.75145,1817.8,1817.7,4.42]
[1746292381248,6.46945,1817.8,1817.7,5.52001]
[1746292381448,6.46945,1817.8,1817.7,4.42]
[1746292381751,6.46945,1817.8,1817.7,5.52001]
[1746292382252,5.3695,1817.8,1817.7,5.52001]
[1746292382650,6.46945,1817.8,1817.7,4.42]
[1746292382845,6.46945,1817.8,1817.7,5.52001]
[1746292383247,6.46945,1817.8,1817.7,4.42]
[1746292383452,6.81524704,1817.8,1817.7,4.42]
[1746292383647,8.46518704,1817.8,1817.4,3.2078]
[1746292383851,1.10014,1817.5,1817.4,5.52114]
[1746292384855,1.10014,1817.5,1817.4,4.421]
[1746292385255,3.8633442,1818.4,1817.5,11.00968]
[1746292385549,6.5475542,1818.4,1818.2,1.09966]
[1746292385753,5.4479442,1818.4,1818.3,4.421]
[1746292386154,6.5475342,1818.4,1818.3,8.139]
[1746292386357,6.89338386,1818.4,1818.3,8.139]
[1746292386545,11.30368386,1818.4,1818.3,8.139]
[1746292386948,8.09588386,1818.4,1818.3,8.139]
[1746292387143,8.09588386,1818.4,1818.3,9.23865]
[1746292387352,7.7500342,1818.4,1818.3,9.23865]
[1746292387553,4.50769094,1818.4,1818.3,9.23865]
[1746292387747,4.50769094,1818.4,1818.3,8.139]
[1746292387953,7.71549094,1818.4,1818.3,8.139]
[1746292388255,4.50769094,1818.4,1818.3,8.139]
[1746292388748,7.71549094,1818.4,1818.3,8.139]
[1746292389048,4.50769094,1818.4,1818.3,8.139]
[1746292389355,7.71549094,1818.4,1818.3,8.139]
[1746292390456,7.71549094,1818.4,1818.3,3.718]
[1746292390858,1.09967,1818.3,1818.1,1.09973]
[1746292391152,5.55731041,1818.2,1818.0,3.718]
[1746292391353,5.55731041,1818.2,1816.9,1.10048]
[1746292391354,0.27510316,1818.0,1816.9,1.10048]
[1746292391556,3.2078,1817.3,1816.8,15.66909129]
[1746292391854,2.07436853,1817.2,1816.8,15.66909129]
[1746292392050,2.07436853,1817.2,1817.0,1.10042]
[1746292392051,2.82866,1817.2,1817.0,1.10042]
[1746292392256,1.7283,1817.2,1817.1,1.10037]
[1746292393159,3.48290316,1817.5,1817.4,1.10019]
[1746292393355,4.58303316,1817.5,1817.4,1.10019]
[1746292393556,3.48290316,1817.5,1817.4,1.10019]
[1746292393951,5.14820316,1817.5,1817.4,1.10019]
[1746292394347,1.6653,1817.5,1817.4,1.10019]
[1746292395057,1.6653,1817.5,1817.4,2.15909]
[1746292395856,3.58824104,1817.6,1817.5,1.10013]
[1746292396158,3.58824104,1817.6,1817.5,2.15903]
[1746292396359,3.58824104,1817.6,1817.5,7.15903]
[1746292396761,2.44207104,1817.6,1817.5,10.36683]
[1746292397262,5.30641999,1817.7,1817.6,1.10007]
[1746292397459,5.30641999,1817.7,1817.6,6.61707]
[1746292397858,7.06531999,1817.7,1817.6,2.31607]
[1746292398160,7.34042315,1817.7,1817.6,6.61707]
[1746292398355,7.34042315,1817.7,1817.6,5.40107]
[1746292399057,2.03400316,1817.7,1817.6,5.40107]
[1746292401862,2.03400316,1817.7,1817.6,1.10007]
[1746292402257,5.75200316,1817.7,1817.6,1.10007]
[1746292404259,2.03400316,1817.7,1817.6,1.10007]
[1746292405271,6.85201316,1817.7,1817.6,1.10007]
[1746292405565,6.85205316,1817.7,1817.5,5.40109]
[1746292406560,1.10007,1817.6,1817.5,5.40109]
[1746292406754,2.8148,1817.6,1817.5,5.40109]
[1746292407155,1.5867,1817.6,1817.5,5.40109]
[1746292407659,3.48290316,1817.9,1817.5,7.05133]
[1746292407858,1.5867,1817.8,1817.7,1.10001]
[1746292408163,6.40465,1817.8,1817.5,5.3626]
[1746292408661,6.40465,1817.8,1817.6,1.10007]
[1746292408963,6.4047,1817.8,1817.6,1.10005]
[1746292409268,6.4047,1817.8,1817.7,1.10001]
[1746292409465,6.7505167,1817.8,1817.7,1.10001]
[1746292409660,5.65056852,1817.8,1817.7,1.10001]
[1746292409863,5.3047,1817.8,1817.7,1.10001]
[1746292410167,6.40465,1817.8,1817.7,1.10001]
[1746292410366,5.3047,1817.8,1817.7,1.10001]
[1746292411062,2.70063,1818.0,1817.9,1.09989]
[1746292411268,0.34596292,1818.0,1817.6,5.912]